Cogmind - Beta 17 @@@ ROGUE MODE // 2026.08.23 @ 12:37:38 Player: Fedop Result: Destroyed by G-34 Mercenary with Small Laser Performance ------------- Evolutions (0) 0 Regions Visited (1) 200 Robots Destroyed (13) 65 Value Destroyed (227) 227 Prototype IDs (0) 0 Alien Tech Used (0) 0 Bonus (0) 0 TOTAL SCORE: 492 Bonus ------- None Cogmind --------- Core Integrity 0/250 Matter 300/300 Energy 100/100 System Corruption 0% Temperature Cool (6) Movement Core (100) Ox1 Location -10/Materials Parts ------- > --- POWER (1) -------- (None) > --- PROPULSION (2) --- (None) > --- UTILITY (2) ------ Seismic Detector Utility Shielding > --- WEAPON (2) ------- Hammer > --- INVENTORY (5) ---- Light Ion Engine Light Nuclear Core Small Storage Unit Power Shielding Weapon Shielding Peak State ------------ > --- POWER ------------ Ion Engine > --- PROPULSION ------- Light Treads Light Treads > --- UTILITY ---------- Small Storage Unit Seismic Detector > --- WEAPON ----------- (None) > --- INVENTORY -------- Light Ion Engine [Rating: 5] Favorites ----------- Power Ion Engine Engine Ion Engine Propulsion Light Treads Treads Light Treads Flight Unit Flight Unit Utility Small Storage Unit Device Seismic Detector Storage Small Storage Unit Protection Utility Shielding Weapon Hammer Impact Weapon Hammer Build | -11 -10 ------- Run | Yrd Mat Slots Evolved . | . . Power . | . . Propulsion . | . . Utility . | . . Weapon . | . . Parts Attached 11 | 5 6 Power 1 | 1 . Engine 1 | 1 . Core . | . . Reactor . | . . Propulsion 3 | 2 1 Treads 2 | 2 . Leg . | . . Wheel . | . . Hover . | . . Flight 1 | . 1 Utility 5 | 2 3 Device 2 | 1 1 Storage 1 | 1 . Processor . | . . Hackware . | . . Protection 2 | . 2 Artifact . | . . Weapon 2 | . 2 Energy Gun . | . . Energy Cannon . | . . Ballistic Gun . | . . Ballistic Cannon . | . . Launcher . | . . Special Weapon . | . . Impact Weapon 2 | . 2 Slashing Weapon . | . . Piercing Weapon . | . . Special Melee Weapon . | . . Unidentified Prototypes . | . . Parts Lost 3 | . 3 Power . | . . Propulsion 2 | . 2 Utility . | . . Weapon 1 | . 1 Highest Loss Streak 2 | . 2 To Critical Strikes . | . . Average Backups 3 | . 4 Power . | . 1 Propulsion . | . . Utility 1 | . 2 Weapon . | . . Tool/Special . | . . Unused Backups 3 | . 3 Power 1 | . 1 Propulsion . | . . Utility 2 | . 2 Weapon . | . . Tool/Special . | . . Average Slot Usage (%) 63 | . 63 Engine 8 | . 8 Treads 18 | . 18 Flight 3 | . 3 Device 11 | . 11 Storage 8 | . 8 Protection 7 | . 7 Impact Weapon 5 | . 5 Peak Build Rating 5 | 5 5 Average Rating 4 | 3 4 On Entrance 2 | . 5 Avg Prop Armor Cover (%) 37 | . 37 Naked Turns . | . . Heaviest Build 11 | 11 11 Greatest Support 40 | 40 40 Greatest Overweight (x) 1 | 1 1 Average Overweight (x) . | . . Largest Inventory Capacity 8 | 8 8 Average Capacity 7 | 7 6 Most Carried 5 | 1 5 Average Carried 3 | . 4 Final Capacity 8 | 8 5 Final Carried 5 | 1 5 Class Distribution -------------------- 100% | Mutant Dominant Class ---------------- Mutant | -10/Materials Resources | -11 -10 ----------- Run | Yrd Mat Matter Collected 251 | 176 75 Remotely . | . . Salvage Created 281 | . 281 Parts 8 | 5 3 Haulers Intercepted . | . . Recyclers Shooed . | . . Parts Field Recycled . | . . Retrieved Matter . | . . Parts Self-Destructed . | . . Prevented . | . . Parts Restored . | . . Kills | -11 -10 ------- Run | Yrd Mat Combat Hostiles Destroyed 7 | . 7 Melee 5 | . 5 Classes Destroyed 5 | 1 4 Worker 1 | . 1 Tunneler 4 | 4 . Recycler 1 | . 1 Swarmer 3 | . 3 Grunt 4 | . 4 Best Kill Streak 7 | 2 7 Combat Bots Only 5 | . 5 Max Kills in Single Turn 1 | 1 1 Gunslinging . | . . Exploded . | . . Melee 1 | . 1 Uniques/NPCs Destroyed . | . . Combat | -11 -10 -------- Run | Yrd Mat Hostile Shots Fired 85 | . 85 Missed 26 | . 26 Hits 59 | . 59 Projectile 59 | . 59 Damage Taken 594 | . 594 Core 252 | . 252 Absorbed by Shields . | . . Redirected to Shielding 23 | . 23 Core Remaining (%) 100 | 100 . Volleys Fired . | . . Largest . | . . Hottest . | . . Shots Fired . | . . Gun . | . . Cannon . | . . Launcher . | . . Special . | . . Kinetic . | . . Thermal . | . . Explosive . | . . Electromagnetic . | . . Robot Hit Streak . | . . Robot Miss Streak . | . . Penetration Max . | . . Secondary Targets . | . . Shots Hit Robots 22 | . 22 Core Hits 10 | 6 4 Critical Kills 1 | . 1 Critical Parts Destroyed 4 | . 4 Critical Strikes 5 | . 5 Smash 5 | . 5 Melee Attacks 44 | . 44 Impact 44 | . 44 Slashing . | . . Piercing . | . . Sneak Attacks 2 | . 2 Combat Hostiles . | . . Follow-up Attacks . | . . Damage Inflicted 689 | 63 626 Guns . | . . Cannons . | . . Explosions . | . . Melee 623 | . 623 Ramming 66 | 63 3 Kinetic . | . . Thermal . | . . Explosive . | . . Electromagnetic . | . . Impact 623 | . 623 Slashing . | . . Piercing . | . . Highest Corruption . | . . Average Corruption . | . . Corruption Purged . | . . Corruption Blocked . | . . Overload Shots . | . . Overflow Damage 151 | . 151 Projectiles . | . . Explosions . | . . Melee 151 | . 151 Knockbacks 4 | . 4 Impact 3 | . 3 Kinetic . | . . Secondary 1 | . 1 Self-Inflicted Damage . | . . Shots . | . . Rammed 30 | 29 1 Targets Rammed 34 | 33 1 Kicked . | . . Crushed 4 | 4 . Highest Temperature . | . . Average Temperature . | . . Received Heat Transfer 180 | . 180 Siege Activations . | . . Martial Activations . | . . Shielding Activations . | . . Robots Disrupted . | . . Combat Hostiles . | . . Robots Corrupted 4 | . 4 Combat Hostiles 2 | . 2 Parts Fried 6 | . 6 Impact Corruptions 10 | . 10 Robots Melted . | . . Combat Hostiles . | . . Parts Melted . | . . Heat Transferred . | . . Parts Sabotaged . | . . Parts Stolen . | . . Parts Stripped . | . . Power Chain Reactions . | . . Alert | -11 -10 ------- Run | Yrd Mat Maximum Alert Level . | . . Low Security (%) 100 | 100 100 Level 1 . | . . Level 2 . | . . Level 3 . | . . Level 4 . | . . Level 5 . | . . High Security . | . . Max Security . | . . Peak Influence 175 | 5 175 Initial . | . . Average 30 | . 47 Influence Increases 284 | 20 264 Destroy 0b10 Robot/C 140 | . 140 Destroy 0b10 Robot/NC 30 | 20 10 Destroy Leader 30 | . 30 Successful Hack 5 | . 5 Destroy Structure 4 | . 4 Lose Combat Pursuer 75 | . 75 Influence Decreases 154 | 20 134 Time Decay 124 | 20 104 Lost Part 30 | . 30 Squads Dispatched 2 | . 2 Investigation 1 | . 1 Extermination . | . . Reinforcement 1 | . 1 Assault . | . . Garrison . | . . Intercept . | . . Searches Triggered . | . . Construction Impeded . | . . Haulers Reinforced . | . . Active Scanning Responses . | . . Cargo Convoy Interrupts . | . . Stealth | -11 -10 --------- Run | Yrd Mat Distress Signals . | . . Communications Jammed . | . . Distress Signals . | . . Times Spotted 17 | . 17 Peak Tracking Total 7 | . 7 Tactical Retreats 3 | . 3 Traps | -11 -10 ------- Run | Yrd Mat Traps Triggered 1 | . 1 Indirectly . | . . Trap Hack Attempts . | . . Triggered . | . . Disarmed . | . . Reprogrammed . | . . Reused . | . . Traps Extracted . | . . Installed . | . . Triggered . | . . Machines | -11 -10 ---------- Run | Yrd Mat Machines Disabled . | . . Max in Single Turn . | . . Machines Repaired . | . . Machines Dismantled . | . . Machines Sabotaged . | . . Overloaded Fab Kills . | . . Hacking | -11 -10 --------- Run | Yrd Mat Machines Accessed 3 | . 3 Terminals 3 | . 3 Fabricators . | . . Repair Stations . | . . Recycling Units . | . . Scanalyzers . | . . Garrison Access . | . . Total Hacks 9 | . 9 Successful 4 | . 4 Failed 5 | . 5 Catastrophic . | . . Database Lockouts . | . . Manual 5 | . 5 Terminals 9 | . 9 Fabricators . | . . Repair Stations . | . . Recycling Units . | . . Scanalyzers . | . . Garrison Access . | . . Terminal Hacks 2 | . 2 Robot Analysis 1 | . 1 Locate Traps 1 | . 1 Fabricator Hacks . | . . Repair Station Hacks . | . . Recycling Unit Hacks . | . . Scanalyzer . | . . Garrison Access Hacks . | . . Unauthorized Hacks 2 | . 2 Terminals 2 | . 2 Botnet 2 | . 2 Fabricators . | . . Repair Stations . | . . Recycling Units . | . . Scanalyzers . | . . Garrison Access . | . . Data Cores Recovered . | . . Used . | . . Hacking Detections 3 | . 3 Full Trace Events . | . . Feedback Events . | . . Feedback Blocked . | . . Robot Schematics Acquired . | . . Robots Built . | . . Authchips . | . . Time . | . . Total Robot Build Rating . | . . Part Schematics Acquired . | . . Parts Built . | . . Authchips . | . . Time . | . . Total Part Build Rating . | . . Part Studies Acquired . | . . Parts Repaired . | . . Time . | . . Parts Recycled . | . . Recycled Matter . | . . Retrieved Matter . | . . Retrieved Components . | . . Parts Scanalyzed . | . . Part Schematics Acquired . | . . Parts Damaged . | . . Bothacking | -11 -10 ------------ Run | Yrd Mat Used RIF Installer . | . . Robots Hacked . | . . Non-combat . | . . Combat . | . . Robot Hacks Applied . | . . Relay Couplers Released . | . . Fabnet Peak Effective % . | . . Robots Rewired . | . . Allies Hacked . | . . Hacks Repelled . | . . Allies | -11 -10 -------- Run | Yrd Mat Total Allies . | . . Largest Group . | . . Highest-Rated Group . | . . Highest-Rated Ally . | . . Total Orders . | . . Ally Attacks . | . . Total Damage . | . . Kills . | . . Allies Corrupted . | . . Allies Melted . | . . Intel | -11 -10 ------- Run | Yrd Mat Active Infowar (turns) 592 | 16 576 Seismic 592 | 16 576 Robot Analysis Total 1 | . 1 Derelict Logs Recovered . | . . Drone Launches . | . . Drone Recoveries . | . . Exploration | -11 -10 ------------- Run | Yrd Mat Turns Passed 1029 | 361 668 Spaces Moved 550 | 190 360 Core 53 | 3 50 Treads 343 | 187 156 Legs . | . . Wheels . | . . Hover . | . . Flight 154 | . 154 Fastest Speed 40 | 50 40 Average Speed 116 | 158 93 Slowest Speed 160 | 160 160 Overloaded Moves . | . . Propulsion Burnouts . | . . Robots Hopped . | . . Potential Cave-ins . | . . Cave-ins Triggered . | . . Exploration Rate (%) 29 | 5 54 Regions Visited 1 Branch Regions . Pre-discovered Areas . | . . Known Exits Taken . | . . Unknown Exits Taken 1 | 1 . Scrap Searched . | . . Spaces Dug 4 | . 4 Terrain Destroyed 4 | . 4 Melee 4 | . 4 Projectile . | . . AOE . | . . Terrain Rammed . | . . Walls Destroyed . | . . Machines Disabled . | . . Actions | -11 -10 --------- Run | Yrd Mat Total 843 | 228 615 Wait 187 | . 187 Move 549 | 189 360 Hop . | . . Pick Up 7 | 1 6 Fast Attach 8 | 5 3 Attach 5 | . 5 Detach 5 | . 5 Swap . | . . Drop 4 | . 4 Fire . | . . Melee 44 | . 44 Ram . | . . Kick . | . . Crush 34 | 33 1 Escape Stasis . | . . Rewire . | . . Trap . | . . Miscellaneous . | . . Route ------- -11/Scrapyard -10/Materials (discovered 1 exit: [*Mat]) History --------- Turn | Location | Event 33 | -11/Scrapyard | Discovered new exit (range 16) 362 | -11/Scrapyard | Entered Materials 367 | -10/Materials | Build established: Mutant 849 | -10/Materials | Core integrity fell below 50% 908 | -10/Materials | Discovered new exit (range 9) 1014 | -10/Materials | Core integrity fell below 20% 1030 | -10/Materials | Destroyed by G-34 Mercenary with Small Laser Last Messages --------------- 00874_ ALERT: Alarm triggered, dispatching investigation squad. 00880_ Acquired Seismic Detector. 00882_ Acquired 10 matter. 00908_ EXIT=FOUND 00909_ Connecting with Terminal... >>Trojan(Botnet) Trojan loaded successfully. Testing... Terminal linked with 0 systems. Awaiting botnet instructions. >>Traps(Locate) Found 4 traps in 1 array: 4x Alarm Trap Map updated. 00912_ Connecting with Terminal... 01003_ Flight Unit destroyed. 01008_ G-47 Trooper destroyed. 01011_ Hammer destroyed. 01013_ Acquired 10 matter. 01016_ Acquired Lgt. Nuclear Core. Map ----- +----------------------------------------------------+ | ?????######## #???????????? | | ?????# #???????????? | | ?????# < T #???????????? | | ?????# #???????????? | | ???######+### #???????????? | | ??# # #####???????????? | | ??# "T" # #???????????????? | | ??# """ # #???????????????? | | ??# # #???????????????? | | ?############ #???????????????? | | ?# ## #???????????????? | | ?# ## #???????????????? | | ?# ## #???????????????? | | ?# ## ##??????????????? | | ?# """ """ # #??????????????? | | ?# """ """ # #??????????????? | | ?# """ """ + +??????????????? | | ?# # #??????????????? | | ?#####;##### #??????????????? | | ????# ### #??????????????? | | ????# ^^+??????????????? | | ????# ^^#??????????????? | | ????# ### #??????????????? | | ????## ##?# #??????????????? | | ?##### #??# #??????????????? | | ?#[[ @g#??# #??????????????? | | ?#[[ #??? +??????????????? | | ?#!!% #??? #??????????????? | | ?#!! ####??? #??????????????? | | ?#]] ##????? ??????????????? | | ?#]] "#????? ??????????????? | | ?######????? ???????????????? | | ??????????????????????????????? | | ??????????????????????????????? | | ??????????????????????????????? | | ??????????????????????????????? | | ??????????????????????????????? | | ??????????????????????????????? | | ??????????????????????????????? | | ??????????????????????????????? | | ??????????????????????????????? | | ??????????????????????????????? | | | | | | | | | | | | | | | | | +----------------------------------------------------+ Best States ------------- Heat Dissipation 25 Energy Generation 10 Energy Capacity 250 Matter Stores 300 Matter Capacity 300 Sight Range 16 Terrain Scan Density 10 Utility Shielding 33 Weapon Shielding 33 Evasion (%) 62 Recoil Reduction 2 Item Schematics ----------------- None Robot Schematics ------------------ None Fabricated ------------ Nothing Repaired ---------- Nothing Studied --------- None Alien Tech Used ----------------- None Achievements -------------- None Challenges ------------ None Game ------ Seed ReinforcedBottomlessSpiker Manual? 0 Play Time 00:09:51 Cumulative 93.4 hours Start 2026.08.23 @ 12:28:27 End 2026.08.23 @ 12:37:38 Sessions 1 Manual Loads 0 Difficulty Rogue Special Mode None Game No. 59 Rogue 59 Adventurer 0 Explorer 0 Win Type - Total 0 Types 0/0/0/0/0/0/0/0/0/0 Lore% 34 Gallery% 40 Achievement% 31 Wizard Run 0 Options --------- Layout 0 ASCII 0 Keyboard 1 Movement Vi Keybinds 0 Fullscreen 2 Font 18/SmallcapsGlow Map View 76x50 Zoom Use 0% Tactical HUD 1 Map Filters NONE Filters NONE Steam 1 RUN: 090fe4d3-73b9-4ef5-a3c0-bc2e8d33e838